[Event "Chestnut 2nd Category Final 2025"]
[Site "Kyiv"]
[Date "2025.04.06"]
[Round "10.1"]
[White "Kravchuk, Sviatoslav"]
[Black "Diachuk, Ihor"]
[Result "0-1"]
[Annotator "NA"]
[ECO "C44"]
[WhiteElo "1441"]
[BlackElo "1550"]
[PlyCount "122"]
[EventDate "2025.04.03"]
[EventCountry "UKR"]
[SourceTitle "playchess.com"]
[Source "ChessBase"]
[SourceQuality "1"]
[TimeControl "600+5"]

1. e4 {[%emt 0:00:01]} e5 {[%emt 0:00:01]} 2. Nf3 {[%emt 0:00:02]} Nc6 {[%emt 0:00:02]} 3. d4 {[%emt 0:00:04]} exd4 {[%emt 0:00:04]} 4. Bc4 {[%emt 0:00:01]} d6 {[%emt 0:00:10]} 5. Nxd4 {[%emt 0:00:03]} Ne5 {[%emt 0:00:23]} 6. Bb3 {[%emt 0:00:06]} Nf6 {[%emt 0:00:07]} 7. Nc3 {[%emt 0:00:03]} Be7 {[%emt 0:00:02]} 8. Bf4 {[%emt 0:00:03]} h6 {[%emt 0:00:10]} 9. Bxe5 {[%emt 0:00:07]} dxe5 {[%emt 0:00:02]} 10. Nde2 {[%emt 0:00:01]} Qxd1+ 11. Rxd1 {[%emt 0:00:05]} O-O {[%emt 0:00:21]} 12. O-O {[%emt 0:00:03]} Bd6 {[%emt 0:00:01]} 13. Ng3 {[%emt 0:00:03]} Bd7 {[%emt 0:00:09]} 14. Nd5 {[%emt 0:00:17]} Nxd5 {[%emt 0:00:09]} 15. Bxd5 {[%emt 0:00:02]} Rab8 {[%emt 0:00:04]} 16. Rfe1 {[%emt 0:00:22]} Rfe8 {[%emt 0:00:13]} 17. Rd3 {[%emt 0:00:17]} Be6 {[%emt 0:00:09]} 18. Bxe6 {[%emt 0:00:08]} Rxe6 {[%emt 0:00:03]} 19. Nf5 {[%emt 0:00:04]} Rd8 {[%emt 0:00:15]} 20. Rg3 {[%emt 0:00:13]} Bf8 {[%emt 0:00:16]} 21. h3 {[%emt 0:00:18]} g6 {[%emt 0:00:04]} 22. Ne3 {[%emt 0:00:06]} Rd4 {[%emt 0:00:26]} 23. Nd5 {[%emt 0:00:29]} c6 {[%emt 0:00:10]} 24. Nc3 {[%emt 0:00:07]} Bb4 {[%emt 0:00:03]} 25. a3 {[%emt 0:00:26]} Bxc3 {[%emt 0:00:06]} 26. Rxc3 {[%emt 0:00:03]} Red6 {[%emt 0:00:04]} 27. Rb3 {[%emt 0:00:10]} b6 {[%emt 0:00:04]} 28. Rc3 {[%emt 0:00:11]} c5 {[%emt 0:00:01]} 29. f3 {[%emt 0:00:20]} Kf8 {[%emt 0:00:03]} 30. Kf1 {[%emt 0:00:30]} Ke7 {[%emt 0:00:09]} 31. Rce3 {[%emt 0:00:05]} h5 {[%emt 0:00:04]} 32. R3e2 {[%emt 0:00:07]} Ke6 {[%emt 0:00:10]} 33. c3 {[%emt 0:00:06]} Rd2 {[%emt 0:00:06]} 34. Rxd2 {[%emt 0:00:16]} Rxd2 {[%emt 0:00:02]} 35. Re2 {[%emt 0:00:01]} Rd1+ {[%emt 0:00:03]} 36. Re1 {[%emt 0:00:02]} Rd3 {[%emt 0:00:05]} 37. Kf2 {[%emt 0:00:08]} c4 {[%emt 0:00:02]} 38. Re3 {[%emt 0:00:03]} Rd6 {[%emt 0:00:03]} 39. Ke2 {[%emt 0:00:04]} b5 {[%emt 0:00:02]} 40. Ke1 {[%emt 0:00:10]} f5 {[%emt 0:00:10]} 41. Re2 {[%emt 0:00:08]} fxe4 {[%emt 0:00:09]} 42. Rxe4 {[%emt 0:00:03]} a6 {[%emt 0:00:09]} 43. f4 {[%emt 0:00:06]} Rd5 {[%emt 0:00:02]} 44. Rxe5+ {[%emt 0:00:02]} Rxe5+ {[%emt 0:00:02]} 45. fxe5 {[%emt 0:00:02]} Kxe5 {[%emt 0:00:01]} 46. Ke2 {[%emt 0:00:01]} Ke4 {[%emt 0:00:02]} 47. g3 {[%emt 0:00:06]} g5 {[%emt 0:00:01]} 48. h4 {[%emt 0:00:05]} g4 {[%emt 0:00:02]} 49. Kf2 {[%emt 0:00:21]} Kd3 {[%emt 0:00:01]} 50. Ke1 {[%emt 0:00:03]} Ke3 {[%emt 0:00:02]} 51. Kf1 {[%emt 0:00:07]} Kf3 {[%emt 0:00:01]} 52. Kg1 {[%emt 0:00:08]} Kxg3 {[%emt 0:00:02]} 53. Kh1 {[%emt 0:00:01]} Kxh4 {[%emt 0:00:04]} 54. Kg1 {[%emt 0:00:01]} Kg3 {[%emt 0:00:01]} 55. Kh1 {[%emt 0:00:01]} h4 {[%emt 0:00:01]} 56. Kg1 {[%emt 0:00:02]} h3 {[%emt 0:00:01]} 57. Kh1 {[%emt 0:00:01]} h2 {[%emt 0:00:07]} 58. a4 {[%emt 0:00:08]} bxa4 {[%emt 0:00:02]} 59. b3 {[%emt 0:00:03]} cxb3 {[%emt 0:00:02]} 60. c4 {[%emt 0:00:00]} b2 {[%emt 0:00:01]} 61. c5 {[%emt 0:00:01]} b1=R# {[%emt 0:00:03]} 0-1

[Event "Chestnut 2nd Category Final 2025"]
[Site "Kyiv"]
[Date "2025.04.06"]
[Round "10.2"]
[White "Udod, Oleksandra"]
[Black "Fabrykator, Myroslava"]
[Result "0-1"]
[Annotator "NA"]
[ECO "A04"]
[WhiteElo "1646"]
[BlackElo "1457"]
[PlyCount "38"]
[EventDate "2025.04.03"]
[EventCountry "UKR"]
[SourceTitle "playchess.com"]
[Source "ChessBase"]
[SourceQuality "1"]
[TimeControl "600+5"]

1. Nf3 {[%emt 0:00:02]} c5 {[%emt 0:00:01]} 2. c4 {[%emt 0:00:04]} Nc6 {[%emt 0:00:01]} 3. b3 {[%emt 0:00:02]} Nf6 {[%emt 0:00:02]} 4. Bb2 {[%emt 0:00:01]} g6 {[%emt 0:00:02]} 5. Nc3 {[%emt 0:00:09]} Bg7 {[%emt 0:00:01]} 6. g3 {[%emt 0:00:20]} O-O {[%emt 0:00:04]} 7. Bg2 {[%emt 0:00:03]} d6 {[%emt 0:00:04]} 8. e3 {[%emt 0:00:41]} Bg4 {[%emt 0:00:14]} 9. d4 {[%emt 0:00:16]} cxd4 {[%emt 0:00:20]} 10. exd4 {[%emt 0:00:02]} e5 {[%emt 0:00:37]} 11. Qd2 {[%emt 0:00:31]} Re8 {[%emt 0:00:53]} 12. O-O {[%emt 0:00:12]} exd4 {[%emt 0:01:02]} 13. Nxd4 {[%emt 0:00:27]} Nxd4 {[%emt 0:00:12]} 14. Qxd4 {[%emt 0:00:03]} Qd7 {[%emt 0:00:39]} 15. Rfe1 {[%emt 0:02:16]} Bh3 {[%emt 0:01:10]} 16. Bxh3 {[%emt 0:00:40]} Qxh3 {[%emt 0:00:07]} 17. Qxd6 {[%emt 0:00:29]} Ng4 {[%emt 0:01:00]} 18. Qf4 {[%emt 0:03:11]} Qxh2+ {[%emt 0:00:11]} 19. Kf1 {[%emt 0:00:01]} Qh1# {[%emt 0:00:08]} 0-1

[Event "Chestnut 2nd Category Final 2025"]
[Site "Kyiv"]
[Date "2025.04.06"]
[Round "10.3"]
[White "Atamanchuk, Dmytro"]
[Black "Kulak, Volodymyr"]
[Result "1/2-1/2"]
[Annotator "NA"]
[ECO "C54"]
[WhiteElo "1493"]
[BlackElo "1607"]
[PlyCount "78"]
[EventDate "2025.04.03"]
[EventCountry "UKR"]
[SourceTitle "playchess.com"]
[Source "ChessBase"]
[SourceQuality "1"]
[TimeControl "600+5"]

1. e4 {[%emt 0:00:01]} e5 {[%emt 0:00:04]} 2. Nf3 {[%emt 0:00:02]} Nc6 {[%emt 0:00:01]} 3. Bc4 {[%emt 0:00:01]} Bc5 {[%emt 0:00:02]} 4. c3 {[%emt 0:00:11]} Nf6 {[%emt 0:00:02]} 5. d3 {[%emt 0:00:05]} d6 {[%emt 0:00:09]} 6. b4 {[%emt 0:00:36]} Bb6 {[%emt 0:00:04]} 7. O-O {[%emt 0:00:09]} O-O {[%emt 0:00:09]} 8. h3 {[%emt 0:00:39]} h6 {[%emt 0:00:02]} 9. Na3 {[%emt 0:00:28]} a6 {[%emt 0:00:12]} 10. Nc2 {[%emt 0:00:03]} Re8 {[%emt 0:00:07]} 11. Re1 {[%emt 0:00:01]} Be6 {[%emt 0:00:09]} 12. Bb3 {[%emt 0:00:04]} Bxb3 {[%emt 0:00:26]} 13. axb3 {[%emt 0:00:01]} d5 {[%emt 0:00:14]} 14. exd5 {[%emt 0:00:32]} Nxd5 {[%emt 0:00:10]} 15. Bd2 {[%emt 0:00:21]} Nf6 {[%emt 0:00:48]} 16. Be3 {[%emt 0:00:29]} Bxe3 {[%emt 0:00:18]} 17. Nxe3 {[%emt 0:00:11]} Nd5 {[%emt 0:00:06]} 18. Qd2 {[%emt 0:00:31]} Qd7 {[%emt 0:00:20]} 19. d4 {[%emt 0:01:13]} exd4 {[%emt 0:00:25]} 20. Nxd4 {[%emt 0:00:08]} Nf6 {[%emt 0:00:45]} 21. Nf3 {[%emt 0:00:44]} Qxd2 {[%emt 0:00:06]} 22. Nxd2 {[%emt 0:00:02]} Rad8 {[%emt 0:00:03]} 23. Rad1 {[%emt 0:00:05]} Rd7 {[%emt 0:00:07]} 24. Ndc4 {[%emt 0:00:05]} Red8 {[%emt 0:00:09]} 25. f3 {[%emt 0:00:33]} Rxd1 {[%emt 0:00:17]} 26. Rxd1 {[%emt 0:00:01]} Rxd1+ {[%emt 0:00:02]} 27. Nxd1 {[%emt 0:00:01]} Kf8 {[%emt 0:00:18]} 28. Kf2 {[%emt 0:00:01]} Ke7 {[%emt 0:00:02]} 29. Ke3 {[%emt 0:00:02]} Ke6 {[%emt 0:00:09]} 30. Na5 {[%emt 0:00:38]} Nxa5 {[%emt 0:00:10]} 31. bxa5 {[%emt 0:00:02]} Nd5+ 32. Ke2 Nf4+ {[%emt 0:01:25]} 33. Kf2 {[%emt 0:00:08]} Nd3+ {[%emt 0:00:09]} 34. Ke3 {[%emt 0:00:02]} Nc5 {[%emt 0:00:10]} 35. b4 {[%emt 0:00:05]} Nd7 {[%emt 0:00:08]} 36. g4 {[%emt 0:00:24]} f5 {[%emt 0:00:11]} 37. c4 {[%emt 0:01:17]} Ne5 {[%emt 0:00:05]} 38. Kf4 {[%emt 0:00:05]} fxg4 {[%emt 0:00:03]} 39. fxg4 {[%emt 0:00:20]} Nxc4 {[%emt 0:00:05]} 1/2-1/2

[Event "Chestnut 2nd Category Final 2025"]
[Site "Kyiv"]
[Date "2025.04.06"]
[Round "10.4"]
[White "Prykhodko, Artem"]
[Black "Ruzhanskyi, Kiril"]
[Result "0-1"]
[Annotator "NA"]
[ECO "A00"]
[WhiteElo "1678"]
[BlackElo "1534"]
[PlyCount "106"]
[EventDate "2025.04.03"]
[EventCountry "UKR"]
[SourceTitle "playchess.com"]
[Source "ChessBase"]
[SourceQuality "1"]
[TimeControl "600+5"]

1. g4 {[%emt 0:00:02]} d5 {[%emt 0:00:03]} 2. Bg2 {[%emt 0:00:01]} Bxg4 {[%emt 0:00:05]} 3. c4 {[%emt 0:00:02]} c6 {[%emt 0:00:01]} 4. Qb3 {[%emt 0:00:03]} dxc4 {[%emt 0:00:41]} 5. Qxc4 {[%emt 0:00:15]} Be6 {[%emt 0:00:05]} 6. Qb4 {[%emt 0:00:04]} Qc7 {[%emt 0:00:06]} 7. Nc3 {[%emt 0:00:08]} Na6 {[%emt 0:00:01]} 8. Qe4 {[%emt 0:00:08]} Nf6 {[%emt 0:00:02]} 9. Qe3 {[%emt 0:00:12]} Nb4 {[%emt 0:00:03]} 10. Kd1 {[%emt 0:00:21]} Ng4 {[%emt 0:00:11]} 11. Qf3 {[%emt 0:00:11]} g6 {[%emt 0:00:06]} 12. h3 {[%emt 0:00:02]} Ne5 {[%emt 0:00:02]} 13. Qg3 {[%emt 0:00:23]} Rc8 {[%emt 0:00:15]} 14. Be4 {[%emt 0:00:35]} Bg7 {[%emt 0:00:12]} 15. a3 {[%emt 0:00:06]} Nd5 {[%emt 0:00:02]} 16. d4 {[%emt 0:00:22]} Nxc3+ {[%emt 0:00:02]} 17. bxc3 {[%emt 0:00:02]} Bb3+ {[%emt 0:00:02]} 18. Ke1 {[%emt 0:00:03]} Nc4 {[%emt 0:00:08]} 19. Qxc7 {[%emt 0:00:15]} Rxc7 {[%emt 0:00:02]} 20. Rb1 {[%emt 0:00:05]} Ba4 {[%emt 0:00:05]} 21. Rb4 {[%emt 0:00:04]} b5 {[%emt 0:00:07]} 22. Bf4 {[%emt 0:00:23]} Nd6 {[%emt 0:00:10]} 23. Bd3 {[%emt 0:00:38]} a5 {[%emt 0:00:02]} 24. Rb1 {[%emt 0:00:09]} O-O {[%emt 0:00:03]} 25. Nf3 {[%emt 0:00:02]} Re8 {[%emt 0:00:04]} 26. c4 {[%emt 0:00:28]} bxc4 {[%emt 0:00:10]} 27. Bxc4 {[%emt 0:00:03]} Rd7 {[%emt 0:00:12]} 28. Bxd6 {[%emt 0:00:06]} Rxd6 {[%emt 0:00:05]} 29. e3 {[%emt 0:00:05]} Bc2 {[%emt 0:00:03]} 30. Rc1 {[%emt 0:00:12]} Be4 {[%emt 0:00:02]} 31. Be2 {[%emt 0:01:04]} e5 {[%emt 0:00:04]} 32. Rg1 {[%emt 0:00:17]} Bxf3 {[%emt 0:00:06]} 33. Bxf3 {[%emt 0:01:03]} exd4 {[%emt 0:00:01]} 34. Rxc6 {[%emt 0:00:05]} Rxc6 {[%emt 0:00:02]} 35. Bxc6 {[%emt 0:00:03]} Rc8 {[%emt 0:00:01]} 36. Bf3 {[%emt 0:00:09]} dxe3 {[%emt 0:00:07]} 37. fxe3 {[%emt 0:00:04]} Rc3 {[%emt 0:00:02]} 38. a4 {[%emt 0:00:22]} Rxe3+ {[%emt 0:00:02]} 39. Kf2 {[%emt 0:00:02]} Bd4 {[%emt 0:00:03]} 40. Rg4 {[%emt 0:00:09]} Bb6 {[%emt 0:00:18]} 41. Kf1 {[%emt 0:00:42]} Rxf3+ {[%emt 0:00:02]} 42. Kg2 {[%emt 0:00:00]} Rf2+ {[%emt 0:00:02]} 43. Kg3 {[%emt 0:00:02]} h5 {[%emt 0:00:05]} 44. Rc4 {[%emt 0:00:07]} Rb2 {[%emt 0:00:04]} 45. Rc8+ {[%emt 0:00:23]} Kg7 {[%emt 0:00:01]} 46. Rc3 {[%emt 0:00:09]} g5 {[%emt 0:00:02]} 47. h4 {[%emt 0:00:12]} Bf2+ {[%emt 0:00:09]} 48. Kh3 {[%emt 0:00:19]} g4+ {[%emt 0:00:02]} 49. Kg2 {[%emt 0:00:08]} Be1+ {[%emt 0:00:03]} 50. Kg1 {[%emt 0:00:03]} Bxc3 {[%emt 0:00:02]} 51. Kh1 {[%emt 0:00:01]} g3 {[%emt 0:00:05]} 52. Kg1 {[%emt 0:00:02]} Bd4+ {[%emt 0:00:01]} 53. Kh1 {[%emt 0:00:02]} Rh2# {[%emt 0:00:04]} 0-1

[Event "Chestnut 2nd Category Final 2025"]
[Site "Kyiv"]
[Date "2025.04.06"]
[Round "10.5"]
[White "Lymar, Makar"]
[Black "Voloshyn, Maksym"]
[Result "1-0"]
[Annotator "NA"]
[ECO "D50"]
[WhiteElo "1565"]
[BlackElo "1621"]
[PlyCount "107"]
[EventDate "2025.04.03"]
[EventCountry "UKR"]
[SourceTitle "playchess.com"]
[Source "ChessBase"]
[SourceQuality "1"]
[TimeControl "600+5"]

1. d4 {[%emt 0:00:00]} Nf6 {[%emt 0:00:01]} 2. c4 {[%emt 0:00:00]} d5 {[%emt 0:00:01]} 3. Nc3 {[%emt 0:00:04]} e6 {[%emt 0:00:05]} 4. Bg5 {[%emt 0:00:05]} Bb4 {[%emt 0:00:05]} 5. a3 {[%emt 0:00:00]} Bxc3+ {[%emt 0:00:03]} 6. bxc3 {[%emt 0:00:00]} h6 {[%emt 0:00:02]} 7. Bh4 {[%emt 0:00:02]} c6 {[%emt 0:00:02]} 8. Nf3 {[%emt 0:00:01]} Qa5 {[%emt 0:00:25]} 9. Bxf6 {[%emt 0:00:30]} Qxc3+ {[%emt 0:00:04]} 10. Nd2 {[%emt 0:00:01]} gxf6 {[%emt 0:00:03]} 11. cxd5 {[%emt 0:00:05]} exd5 {[%emt 0:00:02]} 12. e3 {[%emt 0:00:01]} Bf5 {[%emt 0:00:11]} 13. Be2 {[%emt 0:00:08]} Nd7 {[%emt 0:00:09]} 14. O-O {[%emt 0:00:02]} Rg8 {[%emt 0:00:10]} 15. Kh1 {[%emt 0:00:09]} Qa5 {[%emt 0:00:08]} 16. f3 {[%emt 0:00:25]} Qc7 {[%emt 0:00:04]} 17. e4 {[%emt 0:00:10]} dxe4 {[%emt 0:00:03]} 18. fxe4 {[%emt 0:00:02]} Be6 {[%emt 0:00:11]} 19. Rc1 {[%emt 0:00:16]} Qb6 {[%emt 0:00:10]} 20. Nc4 {[%emt 0:00:19]} Bxc4 {[%emt 0:00:13]} 21. Bxc4 {[%emt 0:00:01]} O-O-O {[%emt 0:00:13]} 22. Bxf7 {[%emt 0:00:07]} Rg7 {[%emt 0:00:03]} 23. Be6 {[%emt 0:00:03]} Kb8 {[%emt 0:00:13]} 24. Bxd7 {[%emt 0:00:02]} Rdxd7 {[%emt 0:00:05]} 25. Rxf6 {[%emt 0:00:05]} Rxd4 {[%emt 0:00:21]} 26. Qf3 {[%emt 0:00:37]} Rd8 {[%emt 0:00:13]} 27. Rxh6 {[%emt 0:00:26]} Qb2 {[%emt 0:00:22]} 28. Rg1 {[%emt 0:00:33]} Rdg8 {[%emt 0:00:15]} 29. Rf6 {[%emt 0:00:34]} Qe5 {[%emt 0:00:40]} 30. h3 {[%emt 0:00:45]} Rg3 {[%emt 0:00:41]} 31. Rf8+ {[%emt 0:00:37]} Rxf8 {[%emt 0:00:03]} 32. Qxf8+ {[%emt 0:00:02]} Kc7 {[%emt 0:00:02]} 33. Qf5 {[%emt 0:00:20]} Qc3 {[%emt 0:00:07]} 34. Kh2 {[%emt 0:00:55]} Rg7 {[%emt 0:00:20]} 35. Qf4+ {[%emt 0:00:36]} Kc8 {[%emt 0:00:11]} 36. Qf8+ {[%emt 0:00:20]} Kc7 {[%emt 0:00:05]} 37. Kh1 {[%emt 0:00:22]} Rg3 {[%emt 0:00:26]} 38. Qe7+ {[%emt 0:00:32]} Kb6 {[%emt 0:00:12]} 39. Rb1+ {[%emt 0:00:06]} Ka5 {[%emt 0:00:14]} 40. Qe6 {[%emt 0:01:31]} Re3 {[%emt 0:00:58]} 41. Kh2 {[%emt 0:00:30]} Qxa3 {[%emt 0:00:24]} 42. Qe5+ {[%emt 0:00:27]} c5 {[%emt 0:00:23]} 43. Ra1 {[%emt 0:00:13]} Qxa1 {[%emt 0:00:11]} 44. Qxa1+ {[%emt 0:00:02]} Kb4 {[%emt 0:00:03]} 45. Qb2+ {[%emt 0:00:10]} Rb3 {[%emt 0:00:02]} 46. Qd2+ {[%emt 0:00:01]} Rc3 {[%emt 0:00:05]} 47. e5 {[%emt 0:00:01]} c4 {[%emt 0:00:01]} 48. e6 {[%emt 0:00:04]} Kb3 {[%emt 0:00:01]} 49. e7 {[%emt 0:00:04]} Rc2 {[%emt 0:00:01]} 50. Qd1 {[%emt 0:00:07]} c3 {[%emt 0:00:03]} 51. e8=Q {[%emt 0:00:06]} Kb2 {[%emt 0:00:02]} 52. Qb5+ {[%emt 0:00:04]} Ka3 {[%emt 0:00:03]} 53. Qxc2 {[%emt 0:00:04]} b6 {[%emt 0:00:02]} 54. Qcb3# {[%emt 0:00:01]} 1-0

[Event "Chestnut 2nd Category Final 2025"]
[Site "Kyiv"]
[Date "2025.04.06"]
[Round "11.1"]
[White "Kulak, Volodymyr"]
[Black "Kravchuk, Sviatoslav"]
[Result "1/2-1/2"]
[Annotator "NA"]
[ECO "C54"]
[WhiteElo "1607"]
[BlackElo "1441"]
[PlyCount "28"]
[EventDate "2025.04.03"]
[EventCountry "UKR"]
[SourceTitle "playchess.com"]
[Source "ChessBase"]
[SourceQuality "1"]
[TimeControl "600+5"]

1. e4 {[%emt 0:00:02]} e5 {[%emt 0:00:01]} 2. Nf3 {[%emt 0:00:01]} Nc6 {[%emt 0:00:01]} 3. Bc4 {[%emt 0:00:01]} Bc5 {[%emt 0:00:02]} 4. c3 {[%emt 0:00:02]} Nf6 {[%emt 0:00:02]} 5. d4 {[%emt 0:00:02]} exd4 {[%emt 0:00:03]} 6. O-O {[%emt 0:00:02]} dxc3 {[%emt 0:00:05]} 7. e5 {[%emt 0:00:07]} d5 {[%emt 0:00:06]} 8. exf6 {[%emt 0:00:38]} dxc4 {[%emt 0:00:04]} 9. fxg7 {[%emt 0:00:26]} Rg8 {[%emt 0:00:08]} 10. Nxc3 {[%emt 0:00:24]} Qxd1 {[%emt 0:00:23]} 11. Rxd1 {[%emt 0:00:06]} Bg4 {[%emt 0:00:04]} 12. Re1+ {[%emt 0:00:36]} Ne7 {[%emt 0:00:03]} 13. Nd5 {[%emt 0:00:31]} O-O-O {[%emt 0:00:50]} 14. Nxe7+ {[%emt 0:00:40]} Bxe7 {[%emt 0:00:03]} 1/2-1/2

[Event "Chestnut 2nd Category Final 2025"]
[Site "Kyiv"]
[Date "2025.04.06"]
[Round "11.2"]
[White "Voloshyn, Maksym"]
[Black "Atamanchuk, Dmytro"]
[Result "1/2-1/2"]
[Annotator "NA"]
[ECO "D45"]
[WhiteElo "1621"]
[BlackElo "1493"]
[PlyCount "67"]
[EventDate "2025.04.03"]
[EventCountry "UKR"]
[SourceTitle "playchess.com"]
[Source "ChessBase"]
[SourceQuality "1"]
[TimeControl "600+5"]

1. d4 {[%emt 0:00:02]} d5 {[%emt 0:00:01]} 2. Nf3 {[%emt 0:00:01]} Nf6 {[%emt 0:00:02]} 3. c4 {[%emt 0:00:01]} c6 {[%emt 0:00:02]} 4. e3 {[%emt 0:00:03]} e6 {[%emt 0:00:02]} 5. Nc3 {[%emt 0:00:02]} Nbd7 {[%emt 0:00:03]} 6. cxd5 {[%emt 0:00:02]} cxd5 {[%emt 0:00:02]} 7. Bd3 {[%emt 0:00:02]} Bd6 {[%emt 0:00:05]} 8. h3 {[%emt 0:00:03]} O-O {[%emt 0:00:07]} 9. O-O {[%emt 0:00:02]} Re8 {[%emt 0:00:12]} 10. Bd2 {[%emt 0:00:14]} Nb6 {[%emt 0:00:13]} 11. Rc1 {[%emt 0:00:07]} Bd7 {[%emt 0:00:02]} 12. Nb5 {[%emt 0:00:08]} Bxb5 {[%emt 0:00:22]} 13. Bxb5 {[%emt 0:00:03]} Re7 {[%emt 0:00:02]} 14. Qe2 {[%emt 0:00:13]} Rc8 {[%emt 0:00:10]} 15. Rxc8 {[%emt 0:00:04]} Qxc8 {[%emt 0:00:01]} 16. Rc1 {[%emt 0:00:03]} Rc7 {[%emt 0:00:01]} 17. Qe1 {[%emt 0:00:25]} a6 {[%emt 0:00:23]} 18. Bd3 {[%emt 0:00:10]} h6 {[%emt 0:00:06]} 19. Rxc7 {[%emt 0:00:08]} Qxc7 {[%emt 0:00:02]} 20. Qc1 {[%emt 0:00:01]} Nc8 {[%emt 0:00:25]} 21. Qxc7 {[%emt 0:00:12]} Bxc7 {[%emt 0:00:01]} 22. Ne1 {[%emt 0:00:05]} Nd6 {[%emt 0:00:01]} 23. b3 {[%emt 0:00:03]} Nde4 {[%emt 0:00:09]} 24. Bxe4 {[%emt 0:00:07]} Nxe4 {[%emt 0:00:02]} 25. Bb4 {[%emt 0:00:12]} f6 {[%emt 0:00:17]} 26. Nd3 {[%emt 0:00:11]} b6 {[%emt 0:00:05]} 27. Kf1 {[%emt 0:00:26]} a5 {[%emt 0:00:03]} 28. Be1 {[%emt 0:00:04]} Kf7 {[%emt 0:00:01]} 29. Ke2 {[%emt 0:00:02]} Ke7 {[%emt 0:00:07]} 30. Nb2 {[%emt 0:00:20]} h5 {[%emt 0:00:42]} 31. f3 {[%emt 0:00:16]} Nd6 {[%emt 0:00:21]} 32. Na4 {[%emt 0:00:12]} Nb5 {[%emt 0:00:14]} 33. Nc3 {[%emt 0:00:12]} Nd6 {[%emt 0:00:34]} 34. Na4 {[%emt 0:00:10]} 1/2-1/2

[Event "Chestnut 2nd Category Final 2025"]
[Site "Kyiv"]
[Date "2025.04.06"]
[Round "11.3"]
[White "Ruzhanskyi, Kiril"]
[Black "Lymar, Makar"]
[Result "1/2-1/2"]
[Annotator "NA"]
[ECO "A40"]
[WhiteElo "1534"]
[BlackElo "1565"]
[PlyCount "147"]
[EventDate "2025.04.03"]
[EventCountry "UKR"]
[SourceTitle "playchess.com"]
[Source "ChessBase"]
[SourceQuality "1"]
[TimeControl "600+5"]

1. d4 {[%emt 0:00:02]} c6 {[%emt 0:00:00]} 2. g3 {[%emt 0:00:01]} d5 {[%emt 0:00:01]} 3. c3 {[%emt 0:00:02]} Bg4 {[%emt 0:00:03]} 4. Bg2 {[%emt 0:00:01]} Nf6 {[%emt 0:00:01]} 5. Qb3 {[%emt 0:00:03]} Qc8 {[%emt 0:00:09]} 6. Bg5 {[%emt 0:00:04]} h6 {[%emt 0:00:04]} 7. Bxf6 {[%emt 0:00:05]} exf6 {[%emt 0:00:01]} 8. Nd2 {[%emt 0:00:02]} Bd6 {[%emt 0:00:14]} 9. e4 {[%emt 0:00:03]} Be6 {[%emt 0:00:18]} 10. exd5 {[%emt 0:00:03]} Bxd5 {[%emt 0:00:21]} 11. Bxd5 {[%emt 0:00:02]} cxd5 {[%emt 0:00:02]} 12. Qxd5 {[%emt 0:00:02]} Qe6+ {[%emt 0:00:01]} 13. Qxe6+ {[%emt 0:00:03]} fxe6 {[%emt 0:00:02]} 14. Nc4 {[%emt 0:00:08]} Be7 {[%emt 0:00:06]} 15. Nf3 {[%emt 0:00:01]} O-O {[%emt 0:00:02]} 16. O-O {[%emt 0:00:09]} Nc6 {[%emt 0:00:07]} 17. Rfe1 {[%emt 0:00:01]} Nd8 {[%emt 0:00:14]} 18. d5 {[%emt 0:00:11]} exd5 {[%emt 0:00:23]} 19. Rxe7 {[%emt 0:00:03]} dxc4 {[%emt 0:00:01]} 20. Rd1 {[%emt 0:00:10]} Rf7 {[%emt 0:00:20]} 21. Re4 {[%emt 0:00:26]} Rc8 {[%emt 0:00:18]} 22. Rdd4 {[%emt 0:00:04]} b5 {[%emt 0:00:09]} 23. Rd5 {[%emt 0:00:05]} Rb8 {[%emt 0:00:13]} 24. Nd4 {[%emt 0:00:01]} a6 {[%emt 0:00:11]} 25. Rd6 {[%emt 0:00:21]} Ra8 {[%emt 0:00:02]} 26. Nf5 {[%emt 0:00:04]} Nb7 {[%emt 0:00:35]} 27. Rb6 {[%emt 0:00:05]} Nc5 {[%emt 0:00:06]} 28. Re2 {[%emt 0:00:29]} Nd3 {[%emt 0:00:23]} 29. Ne7+ {[%emt 0:00:21]} Kh7 {[%emt 0:00:17]} 30. Nc6 {[%emt 0:01:16]} f5 {[%emt 0:00:20]} 31. f4 {[%emt 0:00:55]} Rf6 {[%emt 0:00:07]} 32. b3 {[%emt 0:00:32]} cxb3 {[%emt 0:00:18]} 33. axb3 {[%emt 0:00:02]} Rc8 {[%emt 0:00:01]} 34. Rd2 {[%emt 0:00:05]} Nc5 {[%emt 0:00:35]} 35. b4 {[%emt 0:00:41]} Ne4 {[%emt 0:00:12]} 36. Ne7 {[%emt 0:00:01]} Rxb6 {[%emt 0:00:39]} 37. Nxc8 {[%emt 0:00:02]} Rc6 {[%emt 0:00:01]} 38. Ne7 {[%emt 0:00:21]} Rxc3 {[%emt 0:00:11]} 39. Ra2 {[%emt 0:00:19]} Rc4 {[%emt 0:00:15]} 40. Nxf5 {[%emt 0:00:17]} Rxb4 {[%emt 0:00:01]} 41. Rxa6 {[%emt 0:00:07]} Rb1+ {[%emt 0:00:37]} 42. Kg2 {[%emt 0:00:01]} b4 {[%emt 0:00:14]} 43. Ra7 {[%emt 0:00:02]} b3 {[%emt 0:00:01]} 44. Rxg7+ {[%emt 0:00:02]} Kh8 {[%emt 0:00:00]} 45. Rb7 {[%emt 0:00:27]} b2 {[%emt 0:00:07]} 46. Rb8+ {[%emt 0:00:01]} Kh7 {[%emt 0:00:03]} 47. Rb7+ {[%emt 0:00:02]} Kg6 {[%emt 0:00:02]} 48. Nh4+ {[%emt 0:00:02]} Kf6 {[%emt 0:00:05]} 49. Rb6+ {[%emt 0:00:01]} Kf7 {[%emt 0:00:03]} 50. Rb7+ {[%emt 0:00:01]} Ke6 {[%emt 0:00:01]} 51. f5+ {[%emt 0:00:01]} Kd6 {[%emt 0:00:09]} 52. Kh3 {[%emt 0:00:24]} Nc5 {[%emt 0:00:01]} 53. Rb6+ {[%emt 0:00:02]} Kc7 {[%emt 0:00:01]} 54. Rb5 {[%emt 0:00:02]} Nd3 {[%emt 0:00:04]} 55. Nf3 {[%emt 0:00:09]} Rd1 {[%emt 0:00:10]} 56. f6 {[%emt 0:00:21]} b1=Q 57. f7 {[%emt 0:00:14]} Qxb5 {[%emt 0:00:31]} 58. f8=Q {[%emt 0:00:04]} Qd7+ {[%emt 0:00:14]} 59. Kg2 {[%emt 0:00:12]} Ne1+ {[%emt 0:00:40]} 60. Nxe1 {[%emt 0:00:05]} Rxe1 {[%emt 0:00:02]} 61. Qf4+ {[%emt 0:00:18]} Qd6 {[%emt 0:00:08]} 62. Qf2 {[%emt 0:00:19]} Qd5+ {[%emt 0:00:11]} 63. Kh3 {[%emt 0:00:06]} Qe6+ {[%emt 0:00:02]} 64. Kg2 {[%emt 0:00:03]} Qe4+ {[%emt 0:00:02]} 65. Kh3 {[%emt 0:00:02]} Re2 {[%emt 0:00:18]} 66. Qc5+ {[%emt 0:00:04]} Qc6 {[%emt 0:00:37]} 67. Qa5+ {[%emt 0:00:05]} Kd6 68. Qb4+ {[%emt 0:00:06]} Qc5 {[%emt 0:00:19]} 69. Qf4+ {[%emt 0:00:10]} Kd5 {[%emt 0:00:23]} 70. Qf3+ {[%emt 0:00:01]} Kd6 {[%emt 0:00:04]} 71. Qxe2 {[%emt 0:00:04]} Qc8+ {[%emt 0:00:01]} 72. g4 {[%emt 0:00:10]} Qc3+ {[%emt 0:00:03]} 73. Kh4 {[%emt 0:00:04]} Qf6+ {[%emt 0:00:03]} 74. Kg3 {[%emt 0:00:10]} 1/2-1/2

[Event "Chestnut 2nd Category Final 2025"]
[Site "Kyiv"]
[Date "2025.04.06"]
[Round "11.5"]
[White "Fabrykator, Myroslava"]
[Black "Chornyi, Viktor"]
[Result "1/2-1/2"]
[Annotator "NA"]
[ECO "C00"]
[WhiteElo "1457"]
[BlackElo "1515"]
[PlyCount "22"]
[EventDate "2025.04.03"]
[EventCountry "UKR"]
[SourceTitle "playchess.com"]
[Source "ChessBase"]
[SourceQuality "1"]
[TimeControl "600+5"]

1. e4 e6 2. Qe2 Nc6 3. Nc3 Qe7 4. Nf3 Nf6 5. d3 d5 6. exd5 Nxd5 7. Nxd5 exd5 8. Bf4 Qxe2+ 9. Bxe2 Kd8 10. O-O Be6 11. Rad1 g6 1/2-1/2